Workbook

Sheet Informe 1
B1: ENTEL PERU S.A.-2018- 1 RECONCILIACIÓN DEL ESTADO DE LA SITUACIÓN FINANCIERA ESTATUTARIO CON EL DE CONTABILIDAD SEPARADA-21062019
B3: INFORME 1: RECONCILIACIÓN DEL ESTADO DE LA SITUACIÓN FINANCIERA ESTATUTARIO CON EL DE CONTABILIDAD SEPARADA
B5: Periodo de reporte : Al 31 de Diciembre 2018
B6: Expresado en Miles de Nuevos Soles | C6: Código plan contable | D6: Código PCR | E6: Estado de Situación Financiera Estatutaria | F6: Ajustes | G6: Estado de Situación Financiera de Contabilidad Separada | H6: Nota
B7: ACTIVO CORRIENTE | E7: =SUM(E8:E13) -> 1122568216 | F7: =SUM(F8:F13) -> -8798378.2 | G7: =+E7+F7 -> 1113769838
B8: Efectivo y Equivalentes al Efectivo | C8: Nota 1 | D8: 10 | E8: =+'[1]Informe 1 '!$E$8 -> 20289648.26 | F8: =+'[2]Hoja Trabajo Informe 1'!J60 -> -4300000 | G8: =+E8+F8 -> 15989648.26 | H8: 1
B9: Cuentas por cobrar comerciales | C9: Nota 1 | D9: 12 | E9: =+'[2]Hoja Trabajo Informe 1'!I74 -> 544920518.7 | F9: 0 | G9: 544920518.7 | H9: 1
B10: Cuentas por cobrar comerciales a empresas relacionadas | C10: Nota 1 | D10: 13 | E10: =+'[2]Hoja Trabajo Informe 1'!I115 -> 10555279.71 | F10: 0 | G10: 10555279.71 | H10: 1
B11: Impuestos y Otras cuentas por cobrar | C11: Nota 1 | D11: 16 | E11: =+'[1]Informe 1 '!$E$11 -> 104086372.1 | F11: =+'[1]Informe 1 '!$F$11 -> -4498378.2 | G11: 99587993.92 | H11: 1
B12: Gastos Pagados por Anticipado | C12: Nota 1 | D12: 18 | E12: =+'[2]Hoja Trabajo Informe 1'!I145 -> 176916068.6 | F12: 0 | G12: 176916068.6 | H12: 1
B13: Inventarios | C13: Nota 1 | D13: 20 | E13: =+'[2]Hoja Trabajo Informe 1'!I160 -> 265800328.5 | F13: 0 | G13: 265800328.5 | H13: 1
F14: 0 | G14: 0
B15: ACTIVO NO CORRIENTE | E15: =+E16+E57+E65+E67 -> 6572216578 | F15: =+F16+F57+F65+F67 -> -533913124.3 | G15: 6038303454
B16: Activo Fijo Bruto | D16: 30 | E16: =+E17+E49 -> 5013891827 | F16: =+F17+F49 -> -597761395.6 | G16: 4416130431 | H16: 1
B17: Planta y Equipo de Comunicaciones | D17: 301 | E17: =+E18++E26+E27+E36+E43 -> 4387944944 | F17: =+F18++F26+F27+F36+F43 -> -382679328.1 | G17: 4005265616 | H17: 1
B18: Equipos terminales | C18: Nota 1 | D18: 3011 | E18: =SUM(E19:E25) -> 313906011.7 | F18: =SUM(F19:F25) -> -313906011.7 | G18: 0 | H18: 1
B19: Equipos terminales -Teléfonos de Abonados | C19: Nota 1 | D19: 30111 | E19: 0 | F19: 0 | G19: 0 | H19: 1
B20: Equipos terminales -Teléfonos Públicos | C20: Nota 1 | D20: 30112 | E20: 0 | F20: 0 | G20: 0 | H20: 1
B21: Equipos Terminales -Televisión de Paga | C21: Nota 1 | D21: 30113 | E21: 0 | F21: 0 | G21: 0 | H21: 1
B22: Equipos Terminales -Internet Fijo | C22: Nota 1 | D22: 30114 | E22: 0 | F22: 0 | G22: 0 | H22: 1
B23: Equipos Terminales -Telefonía Móvil | C23: Nota 1 | D23: 30115 | E23: =SUM('[2]Hoja Trabajo Informe 1'!I181) -> 313906011.7 | F23: =+'[2]Hoja Trabajo Informe 1'!J181 -> -313906011.7 | G23: 0 | H23: 1
B24: Equipos Terminales -Internet Móvil | C24: Nota 1 | D24: 30116 | E24: 0 | F24: 0 | G24: 0 | H24: 1
B25: Otros Equipos Terminales | C25: Nota 1 | D25: 30117 | E25: 0 | F25: 0 | G25: 0 | H25: 1
B26: Planta y Equipo de Acceso Local | C26: Nota 1 | D26: 3012 | E26: =SUM('[2]Hoja Trabajo Informe 1'!I185:I206) -> 1020423816 | F26: =SUM('[2]Hoja Trabajo Informe 1'!J194:J206)+'[2]Hoja Trabajo Informe 1'!K193 -> -78391217.9 | G26: 942032598.3 | H26: 1
B27: Equipos Centrales y de agregación | D27: 3013 | E27: =SUM(E28:E35) -> 2461581597 | F27: =SUM(F28:F35) -> -40100069.29 | G27: 2421481528 | H27: 1
B28: Centrales Locales | C28: Nota 1 | D28: 30131 | E28: =SUM('[2]Hoja Trabajo Informe 1'!I209:I253) -> 2441316452 | F28: =SUM('[2]Hoja Trabajo Informe 1'!J235:J253)+'[2]Hoja Trabajo Informe 1'!K234 -> -44323225.33 | G28: 2396993227 | H28: 1
B29: Centrales de Larga Distancia Nacional | C29: Nota 1 | D29: 30132 | F29: 0 | G29: 0 | H29: 1
B30: Centrales de Larga Distancia Internacional | C30: Nota 1 | D30: 30133 | F30: 0 | G30: 0 | H30: 1
B31: Controladores | C31: Nota 1 | D31: 30134 | F31: 0 | G31: 0 | H31: 1
B32: Gateways | C32: Nota 1 | D32: 30135 | E32: =SUM('[2]Hoja Trabajo Informe 1'!I258:I267) -> 20265144.63 | F32: =+'[2]Hoja Trabajo Informe 1'!K263 -> 4223156.039 | G32: 24488300.67 | H32: 1
B33: Cabeceras | C33: Nota 1 | D33: 30136 | F33: 0 | G33: 0 | H33: 1
B34: Transmisión de Datos (Servicio Final) | C34: Nota 1 | D34: 30137 | F34: 0 | G34: 0 | H34: 1
B35: Otros equipos centrales | C35: Nota 1 | D35: 30138 | F35: 0 | G35: 0 | H35: 1
B36: Transmisión (Gran capacidad) | D36: 3014 | E36: =SUM(E37:E42) -> 10043300.31 | F36: =SUM(F37:F42) -> 3305787.856 | G36: 13349088.17 | H36: 1
B37: Cables de Transmisión (excluidos internacional) | C37: Nota 1 | D37: 30141 | E37: =SUM('[2]Hoja Trabajo Informe 1'!I273:I277) -> 10043300.31 | F37: =+'[2]Hoja Trabajo Informe 1'!K275 -> 3305787.856 | G37: 13349088.17 | H37: 1
B38: Equipos de Transmisión (excluidos internacional) | C38: Nota 1 | D38: 30142 | F38: 0 | G38: 0 | H38: 1
B39: Equipos de Transmisión Radio | C39: Nota 1 | D39: 30143 | F39: 0 | G39: 0 | H39: 1
B40: Equipos de Transmisión por Satélite | C40: Nota 1 | D40: 30144 | F40: 0 | G40: 0 | H40: 1
B41: Cables y Equipos internacionales (excluyendo satélite) | C41: Nota 1 | D41: 30145 | F41: 0 | G41: 0 | H41: 1
B42: Otros equipos de transmisión | C42: Nota 1 | D42: 30146 | F42: 0 | G42: 0 | H42: 1
B43: Otros Activos Fijos Brutos de Comunicaciones | D43: 3015 | E43: =SUM(E44:E48) -> 581990218.6 | F43: =SUM(F44:F48) -> 46412182.94 | G43: 628402401.5 | H43: 1
B44: Equipos de Fuerza (Planta Energía Eléctrica) | C44: Nota 1 | D44: 30151 | E44: =SUM('[2]Hoja Trabajo Informe 1'!I285:I297) -> 118597053.9 | F44: =SUM('[2]Hoja Trabajo Informe 1'!J293:J297)+'[2]Hoja Trabajo Informe 1'!K292 -> 16094727.45 | G44: 134691781.3 | H44: 1
B45: Sistemas de Gestión de Red | C45: Nota 1 | D45: 30152 | F45: 0 | G45: 0 | H45: 1
B46: Equipos para Interconexión | C46: Nota 1 | D46: 30153 | E46: =SUM('[2]Hoja Trabajo Informe 1'!I300:I308) -> 241588639.2 | F46: =SUM('[2]Hoja Trabajo Informe 1'!J305:J308)+'[2]Hoja Trabajo Informe 1'!K304 -> 56995273.55 | G46: 298583912.7 | H46: 1
B47: Equipos para Circuitos Alquilados | C47: Nota 1 | D47: 30154 | F47: 0 | G47: 0 | H47: 1
B48: Otros | C48: Nota 1 | D48: 30155 | E48: =SUM('[2]Hoja Trabajo Informe 1'!I311:I315) -> 221804525.5 | F48: =SUM('[2]Hoja Trabajo Informe 1'!J314:J315)+'[2]Hoja Trabajo Informe 1'!K313 -> -26677818.05 | G48: 195126707.5 | H48: 1
B49: Terreno, Edificios, Planta y Equipos no de Telecomunicaciones | D49: 302 | E49: =SUM(E50:E56) -> 625946882.8 | F49: =SUM(F50:F56) -> -215082067.5 | G49: 410864815.3 | H49: 1
B50: Terrenos | C50: Nota 1 | D50: 3021 | E50: =+'[2]Hoja Trabajo Informe 1'!I319 -> 4176870.83 | F50: =+'[2]Hoja Trabajo Informe 1'!K320 -> 992587.6318 | G50: 5169458.462 | H50: 1
B51: Edificios | C51: Nota 1 | D51: 3022 | E51: =SUM('[2]Hoja Trabajo Informe 1'!I322:I324) -> 63841670.51 | F51: =+'[2]Hoja Trabajo Informe 1'!K325 -> 13431275.35 | G51: 77272945.86 | H51: 1
B52: Vehículos y Ayudas Mecánicas | C52: Nota 1 | D52: 3023 | E52: =SUM('[2]Hoja Trabajo Informe 1'!I327) -> 2006900.12 | F52: 0 | G52: 2006900.12 | H52: 1
B53: Equipos Sistemas Informáticos | C53: Nota 1 | D53: 3024 | E53: =SUM('[2]Hoja Trabajo Informe 1'!I329:I330) -> 196721361.8 | F53: =+'[2]Hoja Trabajo Informe 1'!K331+'[2]Hoja Trabajo Informe 1'!J329 -> -42951203.49 | G53: 153770158.3 | H53: 1
B54: Edificios en arrendamiento financiero | C54: Nota 1 | D54: 3025 | F54: 0 | G54: 0 | H54: 1
B55: Otros activos bajo la forma de arrendamiento o leasing | C55: Nota 1 | D55: 3026 | F55: 0 | G55: 0 | H55: 1
B56: Otros Activos no de comunicaciones | C56: Nota 1 | D56: 3027 | E56: =SUM('[2]Hoja Trabajo Informe 1'!I335:I346) -> 359200079.6 | F56: =SUM('[2]Hoja Trabajo Informe 1'!J335:J346) -> -186554727 | G56: 172645352.5 | H56: 1
B57: Activos Intangibles | D57: 31 | E57: =SUM(E58:E64) -> 2383832981 | F57: =SUM(F58:F64) -> -159276066.7 | G57: 2224556914 | H57: 1
B58: Concesiones | C58: Nota 1 | D58: 311 | E58: =+'[2]Hoja Trabajo Informe 1'!I349 -> 1412530614 | F58: =+'[2]Hoja Trabajo Informe 1'!K350 -> 131889206.7 | G58: 1544419820 | H58: 1
B59: Licencias | C59: Nota 1 | D59: 312 | F59: 0 | G59: 0 | H59: 1
B60: Patentes y propiedad intelectual | C60: Nota 1 | D60: 313 | F60: 0 | G60: 0 | H60: 1
B61: Software | C61: Nota 1 | D61: 314 | E61: =SUM('[2]Hoja Trabajo Informe 1'!I354:I361) -> 900287197.5 | F61: =SUM('[2]Hoja Trabajo Informe 1'!J354:K361) -> -220150103.8 | G61: 680137093.7 | H61: 1
B62: Investigación y Desarrollo | C62: Nota 1 | D62: 315 | F62: 0 | G62: 0 | H62: 1
B63: Otros Activos Intangibles | C63: Nota 1 | D63: 316 | E63: =SUM('[2]Hoja Trabajo Informe 1'!I364) -> 71015169.54 | F63: =+'[2]Hoja Trabajo Informe 1'!J364 -> -71015169.54 | G63: 0 | H63: 1
B64: Licencias y Sofware | C64: Nota 1 | D64: 317 | F64: 0 | G64: 0 | H64: 1
B65: Otros Activos No Corrientes | D65: 32 | E65: =+'[1]Informe 1 '!$E$65 -> 2326609876 | F65: 0 | G65: 2326609876 | H65: 1
B67: Depreciación del Activo Fijo Bruto, y Amortización | D67: 34 | E67: =+E68+E107+E100 -> -3152118106 | F67: =+F68+F107+F100 -> 223124338 | G67: -2928993768 | H67: 1
B68: Depreciación de Planta y Equipo de Comunicaciones | D68: 341 | E68: =+E69+E77+E78+E87+E94 -> -2030938403 | F68: =+F69+F77+F78+F87+F94 -> 153307873.6 | G68: -1877630530 | H68: 1
B69: Equipos terminales | C69: Nota 1 | D69: 3411 | E69: =SUM(E70:E76) -> -313906011.8 | F69: =SUM(F70:F76) -> 313906011.8 | G69: 0 | H69: 1
B70: Equipos terminales -Teléfonos de Abonados | C70: Nota 1 | D70: 34111 | F70: 0 | G70: 0 | H70: 1
B71: Equipos terminales -Teléfonos Públicos | C71: Nota 1 | D71: 34112 | F71: 0 | G71: 0 | H71: 1
B72: Equipos Terminales -Televisión de Paga | C72: Nota 1 | D72: 34113 | F72: 0 | G72: =+E72+F72 -> 0 | H72: 1
B73: Equipos Terminales -Internet Fijo | C73: Nota 1 | D73: 34114 | F73: 0 | G73: 0 | H73: 1
B74: Equipos Terminales -Telefonía Móvil | C74: Nota 1 | D74: 34115 | E74: =SUM('[2]Hoja Trabajo Informe 1'!I386) -> -313906011.8 | F74: ='[2]Hoja Trabajo Informe 1'!J386 -> 313906011.8 | G74: 0 | H74: 1
B75: Equipos Terminales -Internet Móvil | C75: Nota 1 | D75: 34116 | F75: 0 | G75: 0 | H75: 1
B76: Otros Equipos Terminales | C76: Nota 1 | D76: 34117 | F76: 0 | G76: 0 | H76: 1
B77: Planta y Equipo de Acceso Local | C77: Nota 1 | D77: 3412 | E77: =SUM('[2]Hoja Trabajo Informe 1'!I390:I398) -> -229947850.5 | F77: =+'[2]Hoja Trabajo Informe 1'!K399 -> -42247923.62 | G77: -272195774.1 | H77: 1
B78: Equipos Centrales y de agregación | D78: 3413 | E78: =SUM(E79:E86) -> -1227978212 | F78: =SUM(F79:F86) -> -62301443.42 | G78: -1290279656 | H78: 1
B79: Centrales Locales | C79: Nota 1 | D79: 34131 | E79: =SUM('[2]Hoja Trabajo Informe 1'!I403:I408) -> -1211812369 | F79: =+'[2]Hoja Trabajo Informe 1'!K409 -> -59437330.07 | G79: -1271249699 | H79: 1
B80: Centrales de Larga Distancia Nacional | C80: Nota 1 | D80: 34132 | F80: 0 | G80: 0 | H80: 1
B81: Centrales de Larga Distancia Internacional | C81: Nota 1 | D81: 34133 | F81: 0 | G81: 0 | H81: 1
B82: Controladores | C82: Nota 1 | D82: 34134 | F82: 0 | G82: 0 | H82: 1
B83: Gateways | C83: Nota 1 | D83: 34135 | E83: =+'[2]Hoja Trabajo Informe 1'!I414 -> -16165842.98 | F83: =+'[2]Hoja Trabajo Informe 1'!K415 -> -2864113.347 | G83: -19029956.33 | H83: 1
B84: Cabeceras | C84: Nota 1 | D84: 34136 | F84: 0 | G84: 0 | H84: 1
B85: Transmisión de Datos (Servicio Final) | C85: Nota 1 | D85: 34137 | F85: 0 | G85: 0 | H85: 1
B86: Otros equipos centrales | C86: Nota 1 | D86: 34138 | F86: 0 | G86: 0 | H86: 1
B87: Transmisión (Gran capacidad) | D87: 3414 | E87: =SUM(E88:E93) -> -9038208.12 | F87: =SUM(F88:F93) -> -3027205.769 | G87: -12065413.89 | H87: 1
B88: Cables de Transmisión (excluidos internacional) | C88: Nota 1 | D88: 34141 | E88: =SUM('[2]Hoja Trabajo Informe 1'!I421:I423) -> -9038208.12 | F88: =+'[2]Hoja Trabajo Informe 1'!K424 -> -3027205.769 | G88: -12065413.89 | H88: 1
B89: Equipos de Transmisión (excluidos internacional) | C89: Nota 1 | D89: 34142 | F89: 0 | G89: 0 | H89: 1
B90: Equipos de Transmisión Radio | C90: Nota 1 | D90: 34143 | F90: 0 | G90: 0 | H90: 1
B91: Equipos de Transmisión por Satélite | C91: Nota 1 | D91: 34144 | F91: 0 | G91: 0 | H91: 1
B92: Cables y Equipos internacionales (excluyendo satélite) | C92: Nota 1 | D92: 34145 | F92: 0 | G92: 0 | H92: 1
B93: Otros equipos de transmisión | C93: Nota 1 | D93: 34146 | F93: 0 | G93: 0 | H93: 1
B94: Otros Activos Fijos Brutos de Comunicaciones | D94: 3415 | E94: =SUM(E95:E99) -> -250068120.9 | F94: =SUM(F95:F99) -> -53021565.4 | G94: -303089686.3 | H94: 1
B95: Equipos de Fuerza (Planta Energía Eléctrica) | C95: Nota 1 | D95: 34151 | E95: =SUM('[2]Hoja Trabajo Informe 1'!I432:I435) -> -49902823.81 | F95: =+'[2]Hoja Trabajo Informe 1'!K436 -> -16411542.73 | G95: -66314366.54 | H95: 1
B96: Sistemas de Gestión de Red | C96: Nota 1 | D96: 34152 | F96: 0 | G96: 0 | H96: 1
B97: Equipos para Interconexión | C97: Nota 1 | D97: 34153 | E97: =SUM('[2]Hoja Trabajo Informe 1'!I439:I443) -> -100199499.7 | F97: =+'[2]Hoja Trabajo Informe 1'!K444 -> -32480925.42 | G97: -132680425.1 | H97: 1
B98: Equipos para Circuitos Alquilados | C98: Nota 1 | D98: 34154 | F98: 0 | G98: 0 | H98: 1
B99: Otros | C99: Nota 1 | D99: 34155 | E99: =SUM('[2]Hoja Trabajo Informe 1'!I447+'[2]Hoja Trabajo Informe 1'!I448) -> -99965797.44 | F99: =+'[2]Hoja Trabajo Informe 1'!K449 -> -4129097.249 | G99: -104094894.7 | H99: 1
B100: Depreciación de Edificios, y Planta y Equipos no de Telecomunicaciones | D100: 342 | E100: =SUM(E101:E106) -> -338218268.1 | F100: =SUM(F101:F106) -> 38611097.09 | G100: -299607171 | H100: 1
B101: Edificios | C101: Nota 1 | D101: 3421 | E101: =SUM('[2]Hoja Trabajo Informe 1'!I452:I453) -> -28041497.08 | F101: =+'[2]Hoja Trabajo Informe 1'!K454 -> -5191912.72 | G101: -33233409.8 | H101: 1
B102: Vehículos y Ayudas Mecánicas | C102: Nota 1 | D102: 3422 | E102: =+'[2]Hoja Trabajo Informe 1'!I456 -> -1599256.27 | F102: 0 | G102: -1599256.27 | H102: 1
B103: Equipos Sistemas Informáticos | C103: Nota 1 | D103: 3423 | E103: =SUM('[2]Hoja Trabajo Informe 1'!I458:I459) -> -134813683.2 | F103: =+'[2]Hoja Trabajo Informe 1'!K460 -> -663951.9442 | G103: -135477635.1 | H103: 1
B104: Edificios en arrendamiento financiero | C104: Nota 1 | D104: 3424 | F104: 0 | G104: 0 | H104: 1
B105: Otros activos bajo la forma de arrendamiento o leasing | C105: Nota 1 | D105: 3425 | F105: 0 | G105: 0 | H105: 1
B106: Otros Activos no de comunicaciones | C106: Nota 1 | D106: 3426 | E106: =SUM('[2]Hoja Trabajo Informe 1'!I464:I471) -> -173763831.6 | F106: =+'[2]Hoja Trabajo Informe 1'!J464+'[2]Hoja Trabajo Informe 1'!J465 -> 44466961.75 | G106: -129296869.8 | H106: 1
B107: Amortización de Intangibles | D107: 343 | E107: =SUM(E108:E114) -> -782961434 | F107: =SUM(F108:F114) -> 31205367.3 | G107: -751756066.7 | H107: 1
B108: Concesiones | C108: Nota 1 | D108: 3431 | E108: =+'[2]Hoja Trabajo Informe 1'!I474+'[2]Hoja Trabajo Informe 1'!I475 -> -153454889.7 | F108: =+'[2]Hoja Trabajo Informe 1'!K476 -> -39809802.24 | G108: -193264691.9 | H108: 1
B109: Licencias | C109: Nota 1 | D109: 3432 | F109: 0 | G109: 0 | H109: 1
B110: Patentes y propiedad intelectual | C110: Nota 1 | D110: 3433 | F110: 0 | G110: 0 | H110: 1
B111: Software | C111: Nota 1 | D111: 3434 | E111: =SUM('[2]Hoja Trabajo Informe 1'!I480:I487) -> -558491374.8 | F111: 0 | G111: -558491374.8 | H111: 1
B112: Investigación y Desarrollo | C112: Nota 1 | D112: 3435 | F112: 0 | G112: 0 | H112: 1
B113: Otros Activos Intangibles | C113: Nota 1 | D113: 3436 | E113: =+'[2]Hoja Trabajo Informe 1'!I490+'[2]Hoja Trabajo Informe 1'!I491 -> -71015169.54 | F113: =+'[2]Hoja Trabajo Informe 1'!J490+'[2]Hoja Trabajo Informe 1'!J491 -> 71015169.54 | G113: 0 | H113: 1
B114: Licencias y Sofware | C114: Nota 1 | D114: 3437 | F114: 0 | G114: 0 | H114: 1
F115: 0
B116: PASIVO CORRIENTE | E116: =SUM(E117:E124) -> 1047716900 | F116: =SUM(F117:F124) -> 435635 | G116: =+E116+F116 -> 1048152535
B117: Tributos y aportes por pagar | C117: Nota 1 | D117: 40 | E117: =SUM('[2]Hoja Trabajo Informe 1'!I560:I577) -> 13650508.38 | F117: 0 | G117: =+E117+F117 -> 13650508.38 | H117: 1
B118: Remuneraciones y participaciones por Pagar | C118: Nota 1 | D118: 41 | E118: =SUM('[2]Hoja Trabajo Informe 1'!I578:I586) -> 20341736.8 | F118: =+'[2]Hoja Trabajo Informe 1'!J584 -> 0 | G118: 20341736.8 | H118: 1
B119: Cuentas por pagar comerciales | C119: Nota 1 | D119: 42 | E119: =SUM('[2]Hoja Trabajo Informe 1'!I506:I542) -> 807657815.4 | F119: 0 | G119: 807657815.4 | H119: 1
B120: Cuentas por pagar a empresas vinculadas | C120: Nota 1 | D120: 43 | E120: =SUM('[2]Hoja Trabajo Informe 1'!I544:I558) -> 32902765.18 | F120: 0 | G120: 32902765.18 | H120: 1
B121: Instrumentos Financieros Derivados | C121: Nota 1 | D121: 45 | E121: =SUM('[2]Hoja Trabajo Informe 1'!I606:I607) -> -436092 | F121: =+'[2]Hoja Trabajo Informe 1'!J606+'[2]Hoja Trabajo Informe 1'!J607 -> 436092 | G121: 0 | H121: 1
B122: Otras Cuentas por pagar diversas | C122: Nota 1 | D122: 46 | E122: =+'[1]Informe 1 '!$E$122 -> 95647128.2 | F122: =+'[2]Hoja Trabajo Informe 1'!J601 -> -457 | G122: 95646671.2 | H122: 1
B123: Compensacion por Tiempo de Servicios | C123: Nota 1 | D123: 47 | E123: =SUM('[2]Hoja Trabajo Informe 1'!I604) -> 3235860.16 | F123: 0 | G123: 3235860.16 | H123: 1
B124: Ingresos diferidos | C124: Nota 1 | D124: 49 | E124: =SUM('[2]Hoja Trabajo Informe 1'!I609:I618) -> 74717177.85 | F124: 0 | G124: 74717177.85 | H124: 1
F125: 0
B126: PASIVO NO CORRIENTE | E126: =SUM(E127:E129) -> 5030698439 | F126: 0 | G126: =+E126+F126 -> 5030698439
B127: Cuentas por pagar a empresas vinculadas - No corriente | C127: Nota 1 | D127: 44 | E127: =+'[2]Hoja Trabajo Informe 1'!I625+'[2]Hoja Trabajo Informe 1'!I626 -> 4891445298 | F127: 0 | G127: 4891445298 | H127: 1
B128: Otras Cuentas por pagar diversas | C128: Nota 1 | D128: 48 | E128: =+'[1]Informe 1 '!$E$128 -> 12138000 | G128: 12138000 | H128: 1
B129: Provision para desmantelamiento de torres | C129: Nota 1 | D129: 48 | E129: =+'[2]Hoja Trabajo Informe 1'!I628+'[2]Hoja Trabajo Informe 1'!I629 -> 127115141.1 | F129: 0 | G129: 127115141.1 | H129: 1
F130: 0
B131: PATRIMONIO NETO | E131: =SUM(E132:E136) -> 1616369454 | F131: =SUM(F132:F136) -> -543147137.5 | G131: =+E131+F131 -> 1073222317
B132: Capital | C132: Nota 1 | D132: 50 | E132: =+'[2]Hoja Trabajo Informe 1'!I635+'[2]Hoja Trabajo Informe 1'!I636 -> 3239568713 | F132: 0 | G132: 3239568713 | H132: 1
B133: Capital adicional | C133: Nota 1 | D133: 51 | E133: 0 | F133: 0 | G133: 0 | H133: 1
B134: Otras reservas | C134: Nota 1 | D134: 57 | E134: =SUM('[2]Hoja Trabajo Informe 1'!I647:I648) -> 14233526.76 | F134: 0 | G134: 14233526.76 | H134: 1
B135: Resultados acumulados | C135: Nota 1 | D135: 58 | E135: =+'[2]Hoja Trabajo Informe 1'!I650+'[2]Hoja Trabajo Informe 1'!I651 -> -1637432785 | F135: =+'[2]Hoja Trabajo Informe 1'!J651 -> -31720639.5 | G135: -1669153425 | H135: 1
B136: Revaluaciones y Otros | C136: Nota 1 | D136: 59 | F136: =+'[1]Informe 1 '!$F$136 -> -511426498 | G136: -511426498 | H136: 1
E138: 0 | G138: 0
